[Event "FIDE U16 Olympiad_boards_1-80"]
[Site "Eindhoven, Netherlands"]
[Date "2023.08.14"]
[Round "2.33"]
[White "Grgantov, Marin"]
[Black "Magold, Filip"]
[Result "1/2-1/2"]
[TimeControl "2700+10"]
[WhiteElo "2192"]
[BlackElo "2195"]

1. e4 {[%clk 00:45:18]} {[%emt 00:00:02]} c5 {[%clk 00:45:19]} 2. Nf3 {[%clk
00:45:26]} {[%emt 00:00:02]} d6 {[%clk 00:45:28]} {[%emt 00:00:01]} 3. d4
{[%clk 00:45:35]} {[%emt 00:00:01]} cxd4 {[%clk 00:45:37]} {[%emt 00:00:02]} 4.
Nxd4 {[%clk 00:45:43]} {[%emt 00:00:01]} Nf6 {[%clk 00:45:45]} {[%emt
00:00:02]} 5. Nc3 {[%clk 00:45:52]} {[%emt 00:00:01]} a6 {[%clk 00:45:54]}
{[%emt 00:00:02]} 6. Be3 {[%clk 00:46:01]} {[%emt 00:00:01]} e5 {[%clk
00:46:03]} 7. Nf3 {[%clk 00:46:09]} {[%emt 00:00:01]} Be7 {[%clk 00:46:10]}
{[%emt 00:00:02]} 8. Bc4 {[%clk 00:46:17]} {[%emt 00:00:03]} O-O {[%clk
00:46:10]} {[%emt 00:00:10]} 9. O-O {[%clk 00:46:25]} {[%emt 00:00:03]} Nc6
{[%clk 00:46:15]} {[%emt 00:00:05]} 10. Qe2 {[%clk 00:43:32]} {[%emt 00:03:03]}
Na5 {[%clk 00:43:54]} {[%emt 00:02:30]} 11. Nd2 {[%clk 00:38:26]} {[%emt
00:05:17]} Bd7 {[%clk 00:31:30]} {[%emt 00:12:34]} 12. Rfd1 {[%clk 00:32:08]}
{[%emt 00:06:28]} b5 {[%clk 00:28:48]} {[%emt 00:02:52]} 13. Bb3 {[%clk
00:30:53]} {[%emt 00:01:25]} h6 {[%clk 00:26:50]} {[%emt 00:02:08]} 14. Nd5
{[%clk 00:25:06]} {[%emt 00:05:57]} Nxb3 {[%clk 00:23:48]} {[%emt 00:03:12]} 15.
Nxf6+ {[%clk 00:22:52]} {[%emt 00:02:24]} Bxf6 {[%clk 00:23:55]} {[%emt
00:00:03]} 16. axb3 {[%clk 00:22:04]} {[%emt 00:00:59]} Be7 {[%clk 00:17:37]}
{[%emt 00:06:27]} 17. Nb1 {[%clk 00:20:29]} {[%emt 00:01:45]} f5 {[%clk
00:15:09]} {[%emt 00:02:37]} 18. exf5 {[%clk 00:18:45]} {[%emt 00:01:55]} Bxf5
{[%clk 00:14:51]} {[%emt 00:00:28]} 19. Nc3 {[%clk 00:18:51]} {[%emt 00:00:03]}
Rf7 {[%clk 00:09:52]} {[%emt 00:05:09]} 20. Nd5 {[%clk 00:17:48]} {[%emt
00:01:13]} Bf8 {[%clk 00:10:01]} {[%emt 00:00:01]} 21. c4 {[%clk 00:17:22]}
{[%emt 00:00:35]} bxc4 {[%clk 00:08:53]} {[%emt 00:01:18]} 22. Qxc4 {[%clk
00:15:58]} {[%emt 00:01:34]} Rc8 {[%clk 00:08:37]} {[%emt 00:00:26]} 23. Qxa6
{[%clk 00:15:32]} {[%emt 00:00:36]} Qh4 {[%clk 00:08:35]} {[%emt 00:00:11]} 24.
Qa4 {[%clk 00:13:16]} {[%emt 00:02:28]} Qh5 {[%clk 00:08:15]} {[%emt 00:00:29]}
25. Rdc1 {[%clk 00:12:05]} {[%emt 00:01:21]} Rxc1+ {[%clk 00:07:20]} {[%emt
00:01:06]} 26. Rxc1 {[%clk 00:12:14]} Qg6 {[%clk 00:07:26]} {[%emt 00:00:02]}
27. Nc3 {[%clk 00:10:36]} {[%emt 00:01:49]} d5 {[%clk 00:07:12]} {[%emt
00:00:24]} 28. Ne2 {[%clk 00:08:28]} {[%emt 00:02:19]} d4 {[%clk 00:06:48]}
{[%emt 00:00:33]} 29. Bd2 {[%clk 00:08:06]} {[%emt 00:00:32]} h5 {[%clk
00:06:04]} {[%emt 00:00:54]} 30. Ng3 {[%clk 00:07:25]} {[%emt 00:00:51]} Bd7
{[%clk 00:05:12]} {[%emt 00:01:02]} 31. Qa8 {[%clk 00:06:49]} {[%emt 00:00:46]}
h4 {[%clk 00:04:34]} {[%emt 00:00:48]} 32. Ne4 {[%clk 00:06:25]} {[%emt
00:00:34]} Bf5 {[%clk 00:01:57]} {[%emt 00:02:48]} 33. Ng5 {[%clk 00:05:43]}
{[%emt 00:00:53]} Rf6 {[%clk 00:00:36]} {[%emt 00:01:30]} 34. Qd5+ {[%clk
00:05:40]} {[%emt 00:00:14]} Be6 {[%clk 00:00:45]} 35. Qxe5 {[%clk 00:05:30]}
{[%emt 00:00:20]} Bxb3 {[%clk 00:00:52]} {[%emt 00:00:04]} 36. Qxd4 {[%clk
00:05:22]} {[%emt 00:00:18]} Rd6 {[%clk 00:00:26]} {[%emt 00:00:36]} 37. Qe3
{[%clk 00:05:13]} {[%emt 00:00:19]} Bd5 {[%clk 00:00:34]} {[%emt 00:00:02]} 38.
f3 {[%clk 00:04:27]} {[%emt 00:00:56]} Rc6 {[%clk 00:00:35]} {[%emt 00:00:08]}
39. Rxc6 {[%clk 00:03:44]} {[%emt 00:00:53]} Qxc6 {[%clk 00:00:44]} {[%emt
00:00:01]} 40. Qc3 {[%clk 00:03:22]} {[%emt 00:00:32]} Qg6 {[%clk 00:00:27]}
{[%emt 00:00:27]} 41. Be3 {[%clk 00:03:07]} {[%emt 00:00:25]} Qb1+ {[%clk
00:00:21]} {[%emt 00:00:17]} 42. Kf2 {[%clk 00:03:16]} Qf5 {[%clk 00:00:24]}
{[%emt 00:00:07]} 43. Qd4 {[%clk 00:02:15]} {[%emt 00:01:11]} Be7 {[%clk
00:00:19]} {[%emt 00:00:15]} 44. Ne4 {[%clk 00:02:07]} {[%emt 00:00:18]} h3
{[%clk 00:00:20]} {[%emt 00:00:08]} 45. gxh3 {[%clk 00:02:04]} {[%emt
00:00:13]} Be6 {[%clk 00:00:19]} {[%emt 00:00:11]} 46. Nc5 {[%clk 00:01:47]}
{[%emt 00:00:28]} Qc2+ {[%clk 00:00:12]} {[%emt 00:00:17]} 47. Kg3 {[%clk
00:01:50]} {[%emt 00:00:06]} Qg6+ {[%clk 00:00:21]} {[%emt 00:00:01]} 48. Kf2
{[%clk 00:01:30]} {[%emt 00:00:30]} Qc2+ {[%clk 00:00:30]} 49. Kg1 {[%clk
00:00:54]} {[%emt 00:00:46]} Qg6+ {[%clk 00:00:33]} {[%emt 00:00:07]} 50. Kf2
{[%clk 00:00:47]} {[%emt 00:00:17]} Qc2+ {[%clk 00:00:42]} {[%emt 00:00:02]} 51.
Kg3 {[%clk 00:00:34]} {[%emt 00:00:23]} Qg6+ {[%clk 00:00:38]} {[%emt
00:00:14]} 52. Kf2 {[%clk 00:00:38]} {[%emt 00:00:07]} 1/2-1/2

[Event "FIDE U16 Olympiad_boards_1-80"]
[Site "Eindhoven, Netherlands"]
[Date "2023.08.14"]
[Round "2.34"]
[White "Filip, Andrei"]
[Black "Colev, Ivor"]
[Result "1-0"]
[TimeControl "2700+10"]
[WhiteElo "2182"]
[BlackElo "1895"]

1. e4 {[%clk 00:45:14]} {[%emt 00:00:05]} c5 {[%clk 00:45:19]} {[%emt
00:00:02]} 2. Nf3 {[%clk 00:45:21]} {[%emt 00:00:03]} d6 {[%clk 00:45:27]}
{[%emt 00:00:02]} 3. Bb5+ {[%clk 00:45:29]} {[%emt 00:00:02]} Nd7 {[%clk
00:45:35]} {[%emt 00:00:02]} 4. c4 {[%clk 00:45:35]} {[%emt 00:00:04]} Ngf6
{[%clk 00:45:42]} {[%emt 00:00:04]} 5. Nc3 {[%clk 00:45:41]} {[%emt 00:00:03]}
a6 {[%clk 00:45:49]} {[%emt 00:00:04]} 6. Ba4 {[%clk 00:45:50]} e6 {[%clk
00:45:55]} {[%emt 00:00:04]} 7. O-O {[%clk 00:45:40]} {[%emt 00:00:19]} Be7
{[%clk 00:46:02]} {[%emt 00:00:04]} 8. d4 {[%clk 00:45:37]} {[%emt 00:00:13]}
cxd4 {[%clk 00:46:03]} {[%emt 00:00:08]} 9. Nxd4 {[%clk 00:45:45]} {[%emt
00:00:02]} Qc7 {[%clk 00:45:12]} {[%emt 00:01:00]} 10. Qe2 {[%clk 00:44:44]}
{[%emt 00:01:11]} O-O {[%clk 00:45:11]} {[%emt 00:00:12]} 11. Be3 {[%clk
00:41:43]} {[%emt 00:03:09]} Ne5 {[%clk 00:39:11]} {[%emt 00:06:10]} 12. Bb3
{[%clk 00:41:32]} {[%emt 00:00:21]} Neg4 {[%clk 00:36:00]} {[%emt 00:03:22]} 13.
Bd2 {[%clk 00:35:34]} {[%emt 00:06:08]} d5 {[%clk 00:30:53]} {[%emt 00:05:18]}
14. Nf3 {[%clk 00:33:31]} {[%emt 00:02:13]} d4 {[%clk 00:23:39]} {[%emt
00:07:24]} 15. Nd1 {[%clk 00:30:41]} {[%emt 00:03:00]} b5 {[%clk 00:11:56]}
{[%emt 00:11:53]} 16. cxb5 {[%clk 00:23:40]} {[%emt 00:07:11]} Bb7 {[%clk
00:11:34]} {[%emt 00:00:31]} 17. h3 {[%clk 00:15:32]} {[%emt 00:08:19]} d3
{[%clk 00:07:47]} {[%emt 00:03:58]} 18. Qxd3 {[%clk 00:15:29]} {[%emt
00:00:12]} Bxe4 {[%clk 00:07:54]} {[%emt 00:00:03]} 19. Qc3 {[%clk 00:14:54]}
{[%emt 00:00:45]} Qb8 {[%clk 00:03:26]} {[%emt 00:04:38]} 20. hxg4 {[%clk
00:13:22]} {[%emt 00:01:43]} Nxg4 {[%clk 00:03:34]} {[%emt 00:00:01]} 21. Re1
{[%clk 00:08:41]} {[%emt 00:04:50]} Bxf3 {[%clk 00:03:43]} {[%emt 00:00:02]} 22.
Qxf3 {[%clk 00:07:55]} {[%emt 00:00:57]} Qh2+ {[%clk 00:03:47]} {[%emt
00:00:05]} 23. Kf1 {[%clk 00:08:04]} {[%emt 00:00:01]} Qh5 {[%clk 00:00:35]}
{[%emt 00:03:21]} 24. Bf4 {[%clk 00:06:33]} {[%emt 00:01:41]} Bg5 {[%clk
00:00:13]} {[%emt 00:00:33]} 25. Qh3 {[%clk 00:02:37]} {[%emt 00:04:07]} Bh4
{[%clk 00:00:14]} {[%emt 00:00:08]} 26. Kg1 {[%clk 00:02:27]} {[%emt 00:00:19]}
g5 {[%clk 00:00:12]} {[%emt 00:00:13]} 27. Bc7 {[%clk 00:01:26]} {[%emt
00:01:11]} Rfc8 {[%clk 00:00:12]} {[%emt 00:00:10]} 28. b6 {[%clk 00:01:35]}
{[%emt 00:00:02]} Nf6 {[%clk 00:00:13]} {[%emt 00:00:08]} 29. b7 {[%clk
00:01:27]} {[%emt 00:00:18]} g4 {[%clk 00:00:23]} 30. bxa8=Q {[%clk 00:01:09]}
{[%emt 00:00:27]} Rxa8 {[%clk 00:00:30]} {[%emt 00:00:02]} 31. Qe3 {[%clk
00:01:04]} {[%emt 00:00:16]} Bg5 {[%clk 00:00:37]} {[%emt 00:00:04]} 32. Bf4
{[%clk 00:01:10]} {[%emt 00:00:04]} h6 {[%clk 00:00:22]} {[%emt 00:00:24]} 33.
Nc3 {[%clk 00:01:02]} {[%emt 00:00:18]} Kg7 {[%clk 00:00:14]} {[%emt 00:00:18]}
34. Ne4 {[%clk 00:01:07]} {[%emt 00:00:04]} Nd5 {[%clk 00:00:13]} {[%emt
00:00:11]} 35. Bxd5 {[%clk 00:01:15]} {[%emt 00:00:02]} exd5 {[%clk 00:00:17]}
{[%emt 00:00:06]} 36. Bxg5 {[%clk 00:01:22]} {[%emt 00:00:03]} hxg5 {[%clk
00:00:25]} {[%emt 00:00:01]} 37. Qxg5+ {[%clk 00:01:31]} {[%emt 00:00:01]} 1-0

[Event "FIDE U16 Olympiad_boards_1-80"]
[Site "Eindhoven, Netherlands"]
[Date "2023.08.14"]
[Round "2.35"]
[White "Sundac, Ivano"]
[Black "Cnejev, Vladimir-Alexandru"]
[Result "0-1"]
[TimeControl "2700+10"]
[WhiteElo "1877"]
[BlackElo "2164"]

1. d4 {[%clk 00:45:19]} d5 {[%clk 00:45:16]} {[%emt 00:00:04]} 2. c4 {[%clk
00:45:27]} {[%emt 00:00:03]} e6 {[%clk 00:45:22]} {[%emt 00:00:02]} 3. Nc3
{[%clk 00:45:35]} {[%emt 00:00:02]} Nf6 {[%clk 00:45:28]} {[%emt 00:00:03]} 4.
cxd5 {[%clk 00:45:43]} {[%emt 00:00:04]} exd5 {[%clk 00:45:36]} {[%emt
00:00:02]} 5. Bg5 {[%clk 00:45:51]} {[%emt 00:00:02]} c6 {[%clk 00:45:27]}
{[%emt 00:00:19]} 6. Qc2 {[%clk 00:45:25]} {[%emt 00:00:36]} Be7 {[%clk
00:45:25]} {[%emt 00:00:11]} 7. e3 {[%clk 00:45:32]} {[%emt 00:00:04]} Nbd7
{[%clk 00:45:28]} {[%emt 00:00:07]} 8. Bd3 {[%clk 00:45:25]} {[%emt 00:00:17]}
Nh5 {[%clk 00:45:28]} {[%emt 00:00:09]} 9. Bxe7 {[%clk 00:45:31]} {[%emt
00:00:04]} Qxe7 {[%clk 00:45:35]} {[%emt 00:00:03]} 10. Nge2 {[%clk 00:45:09]}
{[%emt 00:00:33]} Nb6 {[%clk 00:45:37]} {[%emt 00:00:08]} 11. O-O {[%clk
00:43:50]} {[%emt 00:01:28]} g6 {[%clk 00:45:44]} {[%emt 00:00:03]} 12. a4
{[%clk 00:43:28]} {[%emt 00:00:33]} a5 {[%clk 00:43:49]} {[%emt 00:02:06]} 13.
Rae1 {[%clk 00:40:03]} {[%emt 00:03:34]} O-O {[%clk 00:43:42]} {[%emt
00:00:17]} 14. Nc1 {[%clk 00:39:37]} {[%emt 00:00:36]} Ng7 {[%clk 00:43:13]}
{[%emt 00:00:39]} 15. Nb3 {[%clk 00:39:05]} {[%emt 00:00:43]} Bf5 {[%clk
00:39:50]} {[%emt 00:03:33]} 16. Nc5 {[%clk 00:38:56]} {[%emt 00:00:19]} Bxd3
{[%clk 00:39:33]} {[%emt 00:00:26]} 17. Qxd3 {[%clk 00:38:51]} {[%emt
00:00:14]} Ne6 {[%clk 00:38:15]} {[%emt 00:01:29]} 18. Nxe6 {[%clk 00:38:44]}
{[%emt 00:00:18]} Qxe6 {[%clk 00:38:08]} {[%emt 00:00:16]} 19. b3 {[%clk
00:38:46]} {[%emt 00:00:09]} Rfe8 {[%clk 00:34:58]} {[%emt 00:03:20]} 20. Ne2
{[%clk 00:38:19]} {[%emt 00:00:38]} Nc8 {[%clk 00:34:46]} {[%emt 00:00:22]} 21.
Nf4 {[%clk 00:38:07]} {[%emt 00:00:21]} Qe7 {[%clk 00:34:28]} {[%emt 00:00:27]}
22. Qc2 {[%clk 00:36:13]} {[%emt 00:02:04]} Nd6 {[%clk 00:34:18]} {[%emt
00:00:20]} 23. Rc1 {[%clk 00:35:16]} {[%emt 00:01:07]} Kg7 {[%clk 00:33:38]}
{[%emt 00:00:50]} 24. Rfe1 {[%clk 00:33:46]} {[%emt 00:01:40]} h5 {[%clk
00:26:13]} {[%emt 00:07:35]} 25. f3 {[%clk 00:30:35]} {[%emt 00:03:21]} h4
{[%clk 00:24:56]} {[%emt 00:01:27]} 26. Nd3 {[%clk 00:26:04]} {[%emt 00:04:40]}
Qg5 {[%clk 00:23:26]} {[%emt 00:01:40]} 27. Qf2 {[%clk 00:24:58]} {[%emt
00:01:14]} Re7 {[%clk 00:22:29]} {[%emt 00:01:08]} 28. Re2 {[%clk 00:22:56]}
{[%emt 00:02:12]} Rae8 {[%clk 00:21:48]} {[%emt 00:00:51]} 29. Rce1 {[%clk
00:22:45]} {[%emt 00:00:22]} Qf5 {[%clk 00:13:12]} {[%emt 00:08:46]} 30. Rd2
{[%clk 00:18:46]} {[%emt 00:04:09]} f6 {[%clk 00:10:58]} {[%emt 00:02:24]} 31.
Nf4 {[%clk 00:17:38]} {[%emt 00:01:18]} Qxf4 {[%clk 00:11:03]} {[%emt
00:00:06]} 0-1

[Event "FIDE U16 Olympiad_boards_1-80"]
[Site "Eindhoven, Netherlands"]
[Date "2023.08.14"]
[Round "2.36"]
[White "Maria, Lia-Alexandra"]
[Black "Begic, Klara"]
[Result "1-0"]
[TimeControl "2700+10"]
[WhiteElo "1859"]
[BlackElo "1812"]

1. e4 {[%clk 00:45:16]} {[%emt 00:00:04]} e6 {[%clk 00:45:18]} {[%emt
00:00:03]} 2. d4 {[%clk 00:45:24]} {[%emt 00:00:02]} d5 {[%clk 00:45:26]}
{[%emt 00:00:02]} 3. Nc3 {[%clk 00:45:31]} {[%emt 00:00:02]} Nf6 {[%clk
00:45:33]} {[%emt 00:00:03]} 4. Bg5 {[%clk 00:45:28]} {[%emt 00:00:13]} Be7
{[%clk 00:45:12]} {[%emt 00:00:31]} 5. e5 {[%clk 00:45:06]} {[%emt 00:00:32]}
Nfd7 {[%clk 00:45:17]} {[%emt 00:00:05]} 6. Bxe7 {[%clk 00:44:54]} {[%emt
00:00:22]} Qxe7 {[%clk 00:45:22]} {[%emt 00:00:06]} 7. Nf3 {[%clk 00:41:53]}
{[%emt 00:03:10]} a6 {[%clk 00:45:27]} {[%emt 00:00:04]} 8. Bd3 {[%clk
00:37:10]} {[%emt 00:04:53]} c5 {[%clk 00:45:28]} {[%emt 00:00:09]} 9. dxc5
{[%clk 00:36:57]} {[%emt 00:00:23]} Nxc5 {[%clk 00:44:52]} {[%emt 00:00:46]} 10.
O-O {[%clk 00:36:37]} {[%emt 00:00:30]} Nc6 {[%clk 00:44:42]} {[%emt 00:00:20]}
11. Re1 {[%clk 00:36:13]} {[%emt 00:00:35]} Bd7 {[%clk 00:43:23]} {[%emt
00:01:29]} 12. Bf1 {[%clk 00:35:51]} {[%emt 00:00:32]} b5 {[%clk 00:39:26]}
{[%emt 00:04:07]} 13. a4 {[%clk 00:35:14]} {[%emt 00:00:47]} b4 {[%clk
00:39:15]} {[%emt 00:00:20]} 14. Ne2 {[%clk 00:35:20]} {[%emt 00:00:04]} O-O
{[%clk 00:37:11]} {[%emt 00:02:14]} 15. Nf4 {[%clk 00:34:18]} {[%emt 00:01:12]}
Ne4 {[%clk 00:36:51]} {[%emt 00:00:30]} 16. h4 {[%clk 00:32:45]} {[%emt
00:01:43]} f6 {[%clk 00:29:25]} {[%emt 00:07:36]} 17. Nxd5 {[%clk 00:32:16]}
{[%emt 00:00:39]} Qc5 {[%clk 00:19:16]} {[%emt 00:10:18]} 18. Nxf6+ {[%clk
00:31:41]} {[%emt 00:00:45]} Rxf6 {[%clk 00:18:10]} {[%emt 00:01:16]} 19. Rxe4
{[%clk 00:31:44]} {[%emt 00:00:07]} Rf7 {[%clk 00:18:18]} {[%emt 00:00:02]} 20.
Bd3 {[%clk 00:25:50]} {[%emt 00:06:05]} h6 {[%clk 00:17:09]} {[%emt 00:01:18]}
21. Re3 {[%clk 00:25:41]} {[%emt 00:00:18]} Bc8 {[%clk 00:10:55]} {[%emt
00:06:25]} 22. Bg6 {[%clk 00:23:41]} {[%emt 00:02:10]} Rf4 {[%clk 00:11:02]}
{[%emt 00:00:03]} 23. Re4 {[%clk 00:22:32]} {[%emt 00:01:19]} Rf8 {[%clk
00:09:47]} {[%emt 00:01:25]} 24. Qd6 {[%clk 00:21:12]} {[%emt 00:01:29]} Qb6
{[%clk 00:06:33]} {[%emt 00:03:24]} 25. Rc4 {[%clk 00:20:46]} {[%emt 00:00:36]}
Bb7 {[%clk 00:06:39]} {[%emt 00:00:03]} 26. Qxe6+ {[%clk 00:20:36]} {[%emt
00:00:21]} Kh8 {[%clk 00:06:48]} {[%emt 00:00:01]} 27. Be4 {[%clk 00:20:23]}
{[%emt 00:00:23]} 1-0

[Event "FIDE U16 Olympiad_boards_1-80"]
[Site "Eindhoven, Netherlands"]
[Date "2023.08.14"]
[Round "2.37"]
[White "Borrmann, Laurenz"]
[Black "Lavrencic, Matic"]
[Result "1-0"]
[TimeControl "2700+10"]
[WhiteElo "2238"]
[BlackElo "2220"]

1. d4 {[%clk 00:45:17]} {[%emt 00:00:02]} Nf6 {[%clk 00:45:07]} {[%emt
00:00:13]} 2. c4 {[%clk 00:45:23]} {[%emt 00:00:04]} e6 {[%clk 00:45:16]}
{[%emt 00:00:02]} 3. Nc3 {[%clk 00:45:25]} {[%emt 00:00:07]} Bb4 {[%clk
00:45:22]} {[%emt 00:00:05]} 4. e3 {[%clk 00:45:29]} {[%emt 00:00:06]} O-O
{[%clk 00:45:25]} {[%emt 00:00:07]} 5. Bd3 {[%clk 00:45:33]} {[%emt 00:00:05]}
d5 {[%clk 00:45:25]} {[%emt 00:00:11]} 6. a3 {[%clk 00:45:27]} {[%emt
00:00:15]} Bxc3+ {[%clk 00:45:21]} {[%emt 00:00:15]} 7. bxc3 {[%clk 00:45:35]}
{[%emt 00:00:02]} dxc4 {[%clk 00:45:30]} {[%emt 00:00:02]} 8. Bxc4 {[%clk
00:45:43]} {[%emt 00:00:02]} c5 {[%clk 00:45:39]} 9. Ne2 {[%clk 00:45:50]}
{[%emt 00:00:03]} Qc7 {[%clk 00:45:48]} {[%emt 00:00:01]} 10. Ba2 {[%clk
00:45:59]} b6 {[%clk 00:45:22]} {[%emt 00:00:36]} 11. O-O {[%clk 00:45:54]}
{[%emt 00:00:14]} Ba6 {[%clk 00:45:28]} {[%emt 00:00:04]} 12. Bb2 {[%clk
00:45:59]} {[%emt 00:00:05]} Rd8 {[%clk 00:45:22]} {[%emt 00:00:16]} 13. Rc1
{[%clk 00:44:15]} {[%emt 00:01:54]} Nc6 {[%clk 00:45:25]} {[%emt 00:00:07]} 14.
c4 {[%clk 00:44:05]} {[%emt 00:00:19]} cxd4 {[%clk 00:45:25]} {[%emt 00:00:11]}
15. exd4 {[%clk 00:44:12]} {[%emt 00:00:03]} b5 {[%clk 00:44:49]} {[%emt
00:00:46]} 16. d5 {[%clk 00:43:52]} {[%emt 00:00:29]} bxc4 {[%clk 00:43:30]}
{[%emt 00:01:30]} 17. Bxf6 {[%clk 00:43:59]} {[%emt 00:00:03]} gxf6 {[%clk
00:43:38]} {[%emt 00:00:02]} 18. Bxc4 {[%clk 00:44:00]} {[%emt 00:00:09]} Bxc4
{[%clk 00:42:21]} {[%emt 00:01:28]} 19. Rxc4 {[%clk 00:44:08]} {[%emt
00:00:02]} exd5 {[%clk 00:42:29]} {[%emt 00:00:02]} 20. Rh4 {[%clk 00:38:56]}
{[%emt 00:05:21]} Ne5 {[%clk 00:41:25]} {[%emt 00:01:14]} 21. Qd2 {[%clk
00:38:00]} {[%emt 00:01:06]} Ng6 {[%clk 00:41:13]} {[%emt 00:00:22]} 22. Rh5
{[%clk 00:36:59]} {[%emt 00:01:11]} Re8 {[%clk 00:37:40]} {[%emt 00:03:43]} 23.
Rxd5 {[%clk 00:32:54]} {[%emt 00:04:15]} Rad8 {[%clk 00:37:12]} {[%emt
00:00:38]} 24. Ng3 {[%clk 00:32:09]} {[%emt 00:00:54]} Rxd5 {[%clk 00:35:58]}
{[%emt 00:01:26]} 25. Qxd5 {[%clk 00:32:17]} {[%emt 00:00:02]} Qe5 {[%clk
00:35:59]} {[%emt 00:00:10]} 26. Qd7 {[%clk 00:28:53]} {[%emt 00:03:32]} Re7
{[%clk 00:35:26]} {[%emt 00:00:44]} 27. Qg4 {[%clk 00:28:31]} {[%emt 00:00:31]}
Rc7 {[%clk 00:27:34]} {[%emt 00:08:03]} 28. h4 {[%clk 00:22:15]} {[%emt
00:06:25]} Qe6 {[%clk 00:22:00]} {[%emt 00:05:45]} 29. Qh5 {[%clk 00:17:29]}
{[%emt 00:04:53]} Qe5 {[%clk 00:14:32]} {[%emt 00:07:41]} 30. Qd1 {[%clk
00:16:27]} {[%emt 00:01:12]} Re7 {[%clk 00:13:54]} {[%emt 00:00:48]} 31. h5
{[%clk 00:13:26]} {[%emt 00:03:11]} Nf4 {[%clk 00:14:03]} {[%emt 00:00:02]} 32.
Qg4+ {[%clk 00:13:10]} {[%emt 00:00:26]} Kf8 {[%clk 00:12:59]} {[%emt
00:01:14]} 33. Nf5 {[%clk 00:12:38]} {[%emt 00:00:42]} Ne2+ {[%clk 00:12:06]}
{[%emt 00:01:04]} 34. Kh1 {[%clk 00:12:46]} {[%emt 00:00:01]} Rc7 {[%clk
00:11:29]} {[%emt 00:00:46]} 35. Rd1 {[%clk 00:12:16]} {[%emt 00:00:40]} Rd7
{[%clk 00:07:48]} {[%emt 00:03:53]} 36. Qg7+ {[%clk 00:12:21]} {[%emt
00:00:05]} 1-0